bitfinex/quotes_ETHUSD_20260304
["timestamp","ask_amount","ask_price","bid_price","bid_amount"]
[1772614023636,1.15149531,2042.3,2040.6,7.04206796]
[1772614023820,1.22417001,2042.2,2040.7,1.22506982]
[1772614024017,1.22417001,2042.2,2040.2,2.36447941]
[1772614024018,1.15149531,2041.7,2040.2,2.36447941]
[1772614024323,1.22417001,2042.2,2040.3,6.32619122]
[1772614024651,1.22417001,2042.2,2040.3,5.89057265]
[1772614024652,1.862,2042.1,2040.3,5.89057265]
[1772614024835,1.15149531,2041.8,2040.3,5.89057265]
[1772614025031,1.15149531,2041.5,2040.2,1.22536071]
[1772614025239,6.22193329,2042.1,2040.2,1.22536071]
[1772614025460,1.15149531,2041.7,2040.2,1.22536071]
[1772614025660,1.15149531,2041.4,2040.2,1.22536071]
[1772614025857,1.22470974,2041.3,2039.9,4.90218134]
[1772614026163,1.22470974,2041.3,2040.0,0.43670035]
[1772614026349,6.76221654,2041.6,2040.1,0.43670035]
[1772614026551,1.22405013,2042.4,2040.9,1.15149531]
[1772614027158,3.08805013,2042.4,2040.9,1.15149531]
[1772614027662,1.865,2042.3,2040.9,1.15149531]
[1772614027884,1.22417001,2042.2,2040.7,1.22506982]
[1772614028060,1.22417001,2042.2,2040.8,1.58760185]
[1772614028357,1.22417001,2042.2,2040.8,1.15149531]
[1772614028546,3.08917001,2042.2,2040.7,1.22506982]
[1772614028748,4.89524989,2042.8,2041.1,1.15149531]
[1772614028749,6.760292,2042.8,2041.1,1.15149531]
[1772614028952,7.3734286,2043.0,2040.9,5.89057265]
[1772614028953,1.22372835,2043.0,2041.7,1.15149531]
[1772614029163,1.22372835,2043.0,2041.4,7.04206796]
[1772614029333,2.37713936,2043.1,2041.4,7.04206796]
[1772614029876,2.37713936,2043.1,2040.9,4.00912835]
[1772614029877,0.002,2043.1,2042.3,1.12699998]
[1772614030028,0.002,2043.1,2042.1,1.22422995]
[1772614030440,0.002,2043.1,2041.8,1.22440983]
[1772614030791,0.002,2043.1,2041.8,7.04206796]
[1772614031241,1.15349531,2043.1,2041.8,5.89057265]
[1772614031441,3.01949531,2043.1,2041.5,2.37608507]
[1772614031650,1.15349531,2043.1,2041.5,1.22458976]
[1772614031854,1.15349531,2043.1,2041.4,4.89835904]
[1772614031855,1.22375055,2042.9,2041.4,4.89835904]
[1772614032058,1.22375055,2042.9,2041.4,1.22464975]
[1772614032059,1.867,2042.8,2041.4,1.22464975]
[1772614032379,1.15149531,2042.5,2041.0,1.22488975]
[1772614032680,8.08893329,2042.8,2041.0,1.22488975]
[1772614032681,6.22193329,2042.8,2041.1,1.15149531]
[1772614032882,6.22193329,2042.8,2041.0,1.22488975]
[1772614032883,1.867,2042.6,2041.0,1.22488975]
[1772614033189,7.3734286,2042.3,2040.3,5.89057265]
[1772614033340,1.15149531,2041.7,2040.3,1.22527989]
[1772614033536,3.01849531,2041.7,2040.3,1.22530844]
[1772614033836,1.15149531,2041.4,2039.9,1.22551681]
[1772614034059,11.12029233,2041.6,2040.0,1.15149531]
[1772614034060,6.22193329,2041.6,2040.0,1.15149531]
[1772614034372,4.8968525,2042.2,2040.0,1.15149531]
[1772614034373,1.22428991,2042.0,2040.3,1.15149531]
[1772614034569,1.15149531,2041.6,2040.1,1.1391187]
[1772614035168,6.22193329,2041.7,2039.9,1.22551681]
[1772614035368,6.22193329,2041.7,2040.3,1.15149531]
[1772614035743,6.22193329,2041.7,2039.9,1.22551681]
[1772614036064,1.868,2042.0,2040.1,5.89057265]
[1772614036268,7.4461033,2042.2,2040.9,1.15149531]
[1772614036467,6.22193329,2042.2,2040.9,1.15149531]
[1772614036675,0.003,2042.3,2040.9,1.15149531]
[1772614036676,3.09514483,2042.3,2040.9,1.15149531]
[1772614037057,3.01949531,2042.2,2040.6,1.15149531]
[1772614037368,7.3734286,2042.2,2040.6,1.15149531]
[1772614037672,1.22714483,2042.3,2040.9,1.15149531]
[1772614037980,0.003,2042.3,2041.3,1.22470974]
[1772614038290,0.003,2042.3,2041.5,1.15149531]
[1772614038460,0.003,2042.3,2041.3,1.22470974]
[1772614038461,1.22372713,2043.0,2041.8,1.15149531]
[1772614038856,1.22566373,2043.1,2041.8,1.15149531]
[1772614039058,10.41636284,2044.3,2042.7,1.15149531]
[1772614039374,10.41636284,2044.3,2042.4,7.09441068]
[1772614039557,1.868,2044.2,2042.7,1.15149531]
[1772614039752,10.4163603,2044.3,2042.4,5.94291537]
[1772614039953,1.15149531,2043.8,2042.5,1.65837209]
[1772614040177,1.15149531,2043.8,2042.5,1.2239902]
[1772614040377,1.15149531,2044.1,2042.5,1.2239902]
[1772614040656,1.22585635,2044.4,2042.7,5.94291537]
[1772614040859,0.003,2044.4,2043.3,1.15149531]
[1772614041090,1.2258687,2044.4,2042.6,2.23205499]
[1772614041256,1.2258687,2044.4,2042.5,8.41105889]
[1772614041461,3.01849531,2044.3,2042.5,8.41105889]
[1772614041661,9.16202569,2044.3,2042.5,8.41105889]
[1772614041859,7.36650269,2044.2,2042.5,2.37548551]
[1772614042078,7.29502569,2044.0,2042.3,1.22411007]
[1772614042786,7.29502569,2044.0,2041.9,1.15149531]
[1772614042787,1.15149531,2043.4,2041.9,1.15149531]
[1772614043086,6.14353038,2043.3,2041.7,1.2244698]
[1772614043286,8.00953038,2043.3,2041.9,1.15149531]
[1772614043461,1.15149531,2043.7,2041.9,1.15149531]
[1772614043784,8.8275003,2043.8,2042.5,1.15149531]
[1772614044085,1.15149531,2044.1,2042.6,1.22393028]
[1772614044086,7.36663004,2044.0,2042.6,1.22393028]
[1772614044268,1.865,2043.9,2042.5,2.37544441]
[1772614044584,7.29502569,2043.8,2042.3,1.22411007]
[1772614044774,1.22307611,2044.1,2042.5,1.15149531]
[1772614044959,1.22301284,2044.2,2042.6,0.43386506]
[1772614045154,1.22301284,2044.2,2042.5,1.15149531]
[1772614045155,8.01153038,2044.4,2042.8,1.15149531]
[1772614045465,8.01153038,2044.4,2042.9,0.43363852]
[1772614045466,7.36940557,2044.4,2042.9,0.43363852]
[1772614045666,7.36940557,2044.4,2042.6,1.15149531]
[1772614045856,7.36940557,2044.4,2042.4,6.03557338]
[1772614045857,7.36656252,2044.1,2042.4,6.03557338]
[1772614046067,6.14353038,2043.5,2042.3,1.22410931]
[1772614046678,2.68396992,2043.8,2042.4,1.15149531]
[1772614047105,2.68396992,2043.8,2042.3,1.22410931]
[1772614047273,6.14353038,2043.6,2042.3,1.22410931]
[1772614047474,6.14353038,2043.4,2041.7,1.15149531]
[1772614047693,6.14353038,2043.4,2041.9,1.15149531]
[1772614047991,3.01649531,2043.5,2041.6,4.89809494]
[1772614047992,7.36716113,2043.1,2041.6,4.89809494]
[1772614048368,7.36716113,2043.1,2041.5,1.22554547]
[1772614048578,8.00953038,2043.0,2041.5,1.22554547]
[1772614048770,6.14353038,2043.0,2041.5,1.22554547]
[1772614049077,6.14353038,2043.1,2041.6,0.43592753]
[1772614049304,7.29502569,2042.9,2041.5,0.001]
[1772614049598,7.29502569,2042.3,2041.5,0.001]
[1772614049798,6.14353038,2042.3,2041.5,0.001]
[1772614049962,3.09114769,2042.3,2041.5,0.001]
[1772614050526,1.22405013,2042.4,2041.5,0.001]
[1772614050816,9.16302569,2042.3,2040.9,1.22494977]
[1772614050958,11.03832591,2043.0,2041.7,1.15149531]
[1772614051277,6.14353038,2043.6,2042.3,1.15149531]
[1772614051475,6.14353038,2043.4,2041.7,1.15149531]
[1772614051794,1.87,2043.4,2042.3,1.15149531]
[1772614052099,1.22327151,2043.7,2042.4,1.66099746]
[1772614052100,9.23680189,2043.7,2042.4,1.66099746]
[1772614052265,8.01353038,2043.7,2042.4,1.22405013]
[1772614052586,6.14353038,2043.6,2042.4,1.22405013]
[1772614052766,5.05870971,2043.8,2041.9,1.22434987]
[1772614052767,6.14353038,2043.4,2041.9,1.22434987]
[1772614052961,6.14353038,2043.4,2041.8,4.8974577]
[1772614052962,1.15149531,2043.2,2041.8,1.22438377]
[1772614053164,7.29502569,2043.2,2041.9,0.43738861]
[1772614053361,7.29502569,2043.2,2041.8,1.22438377]
[1772614053562,1.872,2043.1,2041.9,0.43748796]
[1772614053780,1.872,2043.1,2041.8,1.22438377]
[1772614054089,7.36712946,2043.2,2041.9,0.43745387]
[1772614054294,6.14353038,2043.0,2041.6,4.89763933]
[1772614054467,6.14353038,2043.0,2041.7,0.43758952]
[1772614054667,6.14353038,2042.7,2041.3,1.22470974]
[1772614054863,6.14353038,2042.4,2041.0,1.22488975]
[1772614055074,6.14353038,2042.4,2041.1,0.43815304]
[1772614055075,1.15149531,2042.4,2041.1,0.43815304]
[1772614055263,6.14353038,2042.5,2041.2,0.43826011]
[1772614055593,6.14353038,2042.5,2041.0,1.22488975]
[1772614055594,1.875,2042.4,2041.0,1.22488975]
[1772614055892,9.24252625,2042.5,2041.2,1.15149531]
[1772614056093,9.24252625,2042.5,2040.7,7.12193655]
[1772614056094,7.29502569,2042.3,2040.7,7.12193655]
[1772614056290,7.29502569,2042.3,2040.8,5.33797928]
[1772614056491,7.29502569,2042.3,2040.9,0.43818018]
[1772614056730,1.876,2042.2,2040.9,0.43818018]
[1772614056989,1.876,2042.2,2040.8,4.8997991]
[1772614056990,1.15149531,2042.0,2040.7,1.22503829]
[1772614057191,6.14353038,2042.0,2040.8,0.43833414]
[1772614057495,1.876,2041.9,2040.7,1.22503829]
[1772614057693,6.14353038,2042.0,2040.8,0.43817959]
[1772614057896,7.36752852,2042.5,2040.9,0.43817959]
[1772614058070,7.36752852,2042.5,2041.1,1.15149531]
[1772614058071,6.14353038,2042.5,2041.1,1.15149531]
[1772614058264,6.14353038,2043.0,2041.4,1.15149531]
[1772614058592,6.14353038,2043.0,2041.7,1.15149531]
[1772614058794,7.36680189,2043.7,2042.0,1.15149531]
[1772614058983,8.02053038,2043.6,2042.1,0.43817959]
[1772614059167,6.14353038,2043.6,2042.2,0.43817959]
[1772614059366,6.14353038,2043.6,2041.7,3.37326527]
[1772614059564,7.29502569,2043.5,2041.8,0.43714367]
[1772614059768,7.29502569,2043.5,2041.7,3.37326527]
[1772614059769,7.29502569,2043.5,2041.9,0.43714367]
[1772614060091,9.24498149,2043.4,2042.1,1.22422995]
[1772614060294,0.002,2043.1,2041.8,4.89739984]
[1772614060465,0.002,2043.1,2042.3,1.15149531]
[1772614060668,0.068536,2044.4,2042.8,1.15149531]
[1772614060669,7.29802569,2044.4,2042.8,1.15149531]
[1772614060899,7.29802569,2044.4,2042.9,0.43691144]
[1772614060900,1.22498309,2044.2,2042.9,0.43691144]
[1772614061082,1.22498309,2044.2,2042.8,1.15149531]
[1772614061268,0.002,2044.2,2042.9,0.43653334]
[1772614061471,1.22498004,2044.2,2043.0,0.43653334]
[1772614061705,6.14353038,2044.1,2042.5,8.25734334]
[1772614061995,2.37462061,2044.0,2042.7,1.22387036]
[1772614062198,6.14353038,2043.9,2042.8,0.43644212]
[1772614062407,0.002,2044.2,2042.7,1.22387036]
[1772614062699,0.003,2044.4,2043.8,1.15149531]
[1772614062879,0.003,2044.4,2043.3,6.03557338]
[1772614063075,0.003,2044.4,2042.9,1.15149531]
[1772614063268,1.22585949,2044.4,2043.0,0.43589741]
[1772614063468,1.22585949,2044.4,2042.7,4.57071159]
[1772614063469,7.29502569,2044.2,2042.7,1.22387036]
[1772614063799,6.14353038,2044.2,2042.8,0.43599732]
[1772614063978,6.14353038,2044.2,2042.7,1.22387036]
[1772614064183,6.14353038,2044.2,2042.8,0.43606911]
[1772614064184,6.14353038,2044.1,2042.8,0.43606911]
[1772614064381,6.14353038,2044.1,2042.9,0.43606911]
[1772614064697,6.14353038,2044.1,2042.7,1.22387036]
[1772614064873,1.2258969,2044.4,2042.8,0.43611315]
[1772614065068,1.2258969,2044.4,2042.6,1.2238896]
[1772614065069,6.14353038,2043.9,2042.6,1.2238896]
[1772614065291,6.14353038,2043.9,2042.7,0.43617963]
[1772614065491,8.02453038,2043.9,2042.8,0.43617963]
[1772614065697,8.02453038,2043.9,2042.6,1.2238896]
[1772614065903,6.14353038,2043.9,2042.6,1.2238896]
[1772614066113,9.24872971,2043.9,2042.8,1.22381045]
[1772614066405,1.15149531,2043.4,2042.2,1.2241273]
[1772614066606,1.15149531,2043.4,2042.3,0.43735158]
[1772614066909,1.15149531,2043.4,2042.2,1.2241273]
[1772614066910,7.29502569,2043.1,2041.8,2.22176996]
[1772614067105,7.29502569,2042.8,2041.6,1.22451393]
[1772614067304,7.29502569,2042.8,2041.5,4.89811912]
[1772614067305,7.29502569,2042.8,2041.3,1.22466787]
[1772614067505,1.15149531,2042.5,2041.4,0.43829627]
[1772614067693,1.15149531,2042.5,2041.5,0.43823702]
[1772614067895,7.29502569,2042.7,2041.3,1.22466787]
[1772614068094,7.36745871,2042.7,2041.5,1.22458976]
[1772614068295,7.36745871,2042.7,2041.6,0.43815948]
[1772614068495,7.36745871,2042.7,2041.5,2.37608507]
[1772614068496,7.38498857,2043.2,2041.7,0.43815948]
[1772614068798,7.38498857,2043.2,2041.8,0.43815948]
[1772614068799,7.31291302,2043.0,2041.8,0.43815948]
[1772614068991,6.16141771,2042.8,2041.5,1.22458976]
[1772614069189,6.16141771,2042.8,2041.6,0.43816533]
[1772614069411,2.37506617,2043.2,2041.7,0.43819776]
[1772614069601,9.19791302,2043.1,2041.8,0.43819776]
[1772614069787,1.885,2043.0,2041.9,0.43819776]
[1772614070108,7.31291302,2043.1,2042.1,1.22422995]
[1772614070109,6.16141771,2043.1,2042.1,1.22422995]
[1772614070310,7.38505091,2043.1,2042.1,1.22422995]
[1772614070516,7.38505091,2043.1,2041.7,2.22176996]
[1772614070517,1.15149531,2042.8,2041.6,3.44625875]
[1772614070811,1.15149531,2042.2,2041.1,0.001]
[1772614071011,1.15149531,2042.2,2041.2,0.43883719]
[1772614071214,1.886,2042.3,2041.3,0.43887239]
[1772614071506,7.31291302,2042.5,2041.4,0.43873749]
[1772614071507,6.16141771,2042.5,2041.4,0.43873749]
[1772614071683,6.16141771,2042.5,2041.1,2.37732137]
[1772614071885,8.04841771,2042.5,2041.2,0.43874928]
[1772614072084,1.22405013,2042.4,2041.3,1.66340556]
[1772614072316,3.11105013,2042.4,2041.4,0.43874928]
[1772614072481,12.20911356,2042.5,2041.4,1.15149531]
[1772614072482,7.38541022,2042.5,2041.4,1.15149531]
[1772614072780,7.38514729,2043.0,2041.7,1.15149531]
[1772614072985,4.89404394,2043.4,2042.0,1.15149531]
[1772614073181,9.27286882,2043.4,2042.1,0.4385591]
[1772614073381,7.38486882,2043.4,2042.0,1.15149531]
[1772614073581,7.38486882,2043.4,2042.1,0.43820713]
[1772614073582,1.888,2043.3,2042.1,0.43820713]
[1772614073814,8.04941771,2043.3,2041.7,1.15149531]
[1772614074016,1.888,2043.2,2041.8,0.43820954]
[1772614074224,1.888,2043.2,2041.9,0.43820954]
[1772614074524,7.38504846,2043.1,2042.0,1.22428913]
[1772614074820,1.888,2043.0,2041.9,1.2243262]
[1772614075025,1.888,2043.0,2042.0,0.43822155]
[1772614075212,1.22339124,2043.5,2042.1,0.43818626]
[1772614075384,1.22339124,2043.5,2042.2,0.43818626]
[1772614075385,3.11139124,2043.5,2042.2,0.43818626]
[1772614075614,3.11139124,2043.5,2042.3,0.43818626]
[1772614075936,1.15149531,2043.2,2041.9,1.2243262]
[1772614076138,7.31291302,2043.2,2042.0,0.43838267]
[1772614076339,7.31291302,2043.2,2041.8,4.89754677]
[1772614076340,1.22369065,2043.0,2042.2,1.22417001]
[1772614076523,1.22369065,2043.0,2042.1,1.22418606]
[1772614076737,7.31291302,2043.2,2042.2,0.43844786]
[1772614076738,7.38502047,2043.2,2042.2,0.43844786]
[1772614076957,7.38502047,2043.2,2042.1,1.22418606]
[1772614076958,9.27302047,2043.2,2042.1,1.22418606]
[1772614077143,9.27302047,2043.2,2042.2,0.43851314]
[1772614077341,10.42451578,2043.2,2042.0,1.22425428]
[1772614077516,10.42451578,2043.2,2042.1,0.43860385]
[1772614077716,1.887,2043.1,2042.0,1.22425428]
[1772614077946,1.887,2043.1,2041.9,1.22430554]
[1772614078149,8.04841771,2043.1,2042.0,0.43867236]
[1772614078333,8.04841771,2043.1,2041.6,4.89811711]
[1772614078653,3.11069065,2043.0,2041.7,0.43876337]
[1772614078857,3.11069065,2043.0,2041.8,0.43876337]
[1772614078858,1.22369065,2043.0,2041.8,0.43876337]
[1772614079155,4.89360537,2043.5,2041.9,1.59025868]
[1772614079347,3.10942912,2043.5,2042.2,1.15149531]
[1772614079646,1.886,2043.4,2042.3,0.43876337]
[1772614079849,1.15149531,2043.3,2042.4,0.43876337]
[1772614080046,1.886,2043.2,2042.0,2.22176996]
[1772614080346,1.886,2043.5,2042.3,1.15149531]
[1772614080532,7.38478986,2043.6,2042.4,1.66261184]
[1772614080711,7.38478986,2043.6,2042.5,0.43856171]
[1772614080917,3.10937215,2043.6,2042.4,1.22405013]
[1772614081117,10.06863056,2043.8,2042.6,1.15149531]
[1772614081318,3.10818139,2043.9,2042.7,0.43847427]
[1772614081519,0.005,2044.0,2042.9,1.15149531]
[1772614081835,1.22809519,2044.0,2043.0,0.43847427]
[1772614082035,1.22809519,2044.0,2042.6,3.37326527]
[1772614082343,3.11309519,2044.0,2042.7,0.43804359]
[1772614082541,9.2745129,2044.0,2042.8,1.66185404]
[1772614082717,7.3895129,2044.0,2042.8,1.22381045]
[1772614082917,1.885,2043.9,2042.8,1.22381045]
[1772614083147,1.884,2043.8,2042.8,1.22381045]
[1772614083819,6.16141771,2043.7,2042.5,1.22395573]
[1772614084039,1.884,2043.6,2042.6,0.43813133]
[1772614084243,1.884,2043.6,2042.7,0.43813133]
[1772614084461,1.22339124,2043.5,2042.4,4.89604463]
[1772614084624,1.884,2043.4,2042.5,0.43812705]
[1772614084818,1.884,2043.4,2042.6,0.43812705]
[1772614085021,1.884,2043.4,2042.4,4.89604463]
[1772614085324,1.884,2043.4,2042.5,0.43824414]
[1772614085538,1.884,2043.4,2042.4,4.89604463]
[1772614085756,7.38471933,2043.7,2042.3,4.89626102]
[1772614085918,1.22810112,2044.0,2042.8,6.3907002]
[1772614086120,0.005,2044.0,2042.9,6.82906904]
[1772614086356,0.005,2044.0,2043.1,6.3907002]
[1772614086536,0.005,2044.0,2043.3,1.22351098]
[1772614086737,0.005,2044.0,2043.4,0.43836884]
[1772614087036,0.005,2044.0,2043.5,0.43836884]
[1772614087235,0.005,2044.0,2043.6,0.43836884]
[1772614087437,0.003,2044.4,2043.3,1.22351098]
[1772614087642,0.003,2044.4,2044.0,0.001]
[1772614087854,6.16441771,2044.4,2043.2,1.2235524]
[1772614088023,0.003,2044.4,2043.3,0.43818702]
[1772614088222,0.003,2044.4,2043.4,0.43818702]
[1772614088422,1.22291248,2044.3,2043.6,1.22333137]
[1772614088730,6.16141771,2043.9,2042.7,2.22176996]
[1772614088931,1.881,2043.8,2042.5,2.22176996]
[1772614089247,6.16141771,2043.9,2042.4,8.61247016]
[1772614089458,1.881,2043.7,2042.6,1.22388417]
[1772614089640,6.16141771,2043.9,2042.9,1.2237213]
[1772614089950,6.16141771,2043.9,2042.2,11.63689986]
[1772614089951,6.16141771,2043.7,2042.5,1.2239636]
[1772614090154,6.16141771,2043.7,2042.6,1.22390491]
[1772614090351,1.881,2043.6,2042.5,1.22394685]
[1772614090649,7.38480895,2043.5,2042.2,4.89662629]
[1772614090853,7.38480895,2043.5,2042.2,1.22417001]
[1772614091053,7.38480895,2043.5,2041.8,2.22176996]
[1772614091054,5.66141771,2043.1,2041.8,2.22176996]
[1772614091353,5.66141771,2043.1,2041.9,0.43937048]
[1772614091553,5.66141771,2043.1,2041.8,1.22436706]
[1772614091554,7.54141771,2043.1,2042.0,0.43937048]
[1772614091761,7.54141771,2043.1,2041.8,1.22436706]
[1772614091762,7.54141771,2043.1,2042.1,0.43937048]
[1772614091933,1.88,2043.0,2041.8,1.22436706]
[1772614092259,5.66141771,2043.1,2041.9,0.43917431]
[1772614092445,1.88,2043.0,2042.0,0.43917431]
[1772614092641,3.10366899,2043.1,2042.1,1.22422995]
[1772614093035,3.10266899,2043.1,2042.2,0.4399076]
[1772614093230,1.879,2043.3,2042.3,0.44007015]
[1772614093555,1.879,2043.3,2042.1,1.22422995]
[1772614093848,1.22345111,2043.4,2042.2,0.43996319]
[1772614094024,1.879,2043.3,2042.3,0.43996319]
[1772614094225,3.91235158,2043.9,2042.4,6.83060144]
[1772614094448,1.22321166,2043.8,2042.5,0.43990124]
[1772614094623,1.22321166,2043.8,2042.7,1.22387036]
[1772614094824,1.22321166,2043.8,2042.8,0.43970403]
[1772614095055,3.10121166,2043.8,2042.7,1.22387036]
[1772614095256,3.10121166,2043.8,2042.8,0.43971468]
[1772614095461,3.10121166,2043.8,2042.7,1.22387036]
[1772614095660,3.10121166,2043.8,2042.4,1.22400885]
[1772614095661,6.16141771,2043.6,2042.4,1.22400885]
[1772614095957,7.58189828,2043.9,2042.5,0.4398801]
[1772614095958,3.91231588,2043.9,2042.5,0.4398801]
[1772614096260,1.61046707,2043.7,2042.6,0.4398801]
[1772614096555,6.16141771,2043.6,2042.3,1.22407389]
[1772614096764,7.38480895,2043.5,2042.4,0.43963173]
[1772614096962,7.38480895,2043.5,2042.5,0.43961625]
[1772614097163,1.878,2043.7,2042.6,0.43959636]
[1772614097333,1.22321166,2043.8,2042.7,0.43959636]
[1772614097528,1.878,2043.7,2042.8,0.43959636]
[1772614097762,1.878,2043.7,2042.2,4.57101124]
[1772614097763,1.878,2043.7,2042.3,2.22176996]
[1772614098054,1.22321166,2043.8,2042.4,0.43962884]
[1772614098259,1.22321166,2043.8,2042.5,0.43962884]
[1772614098260,1.878,2043.7,2042.5,0.43962884]
[1772614098630,1.22321166,2043.8,2042.6,1.22393028]
[1772614098838,3.10121166,2043.8,2042.7,0.43962884]
[1772614099240,6.93746277,2043.8,2042.7,0.43962884]
[1772614099546,1.878,2043.7,2042.7,0.43962884]
[1772614100260,1.878,2043.6,2042.7,0.43962884]
[1772614100483,5.71425111,2043.5,2042.2,1.22417001]
[1772614100764,1.22321166,2043.8,2042.5,6.30371668]
[1772614100932,1.22321166,2043.8,2042.6,8.96566405]
[1772614101132,3.10121166,2043.8,2042.7,0.44017741]
[1772614101340,3.10121166,2043.8,2042.8,0.44017741]
[1772614101553,0.002,2044.0,2043.1,5.75454699]
[1772614101752,0.002,2044.0,2043.2,0.44017741]
[1772614102033,0.002,2044.0,2043.3,0.44017741]
[1772614102350,1.22509235,2044.0,2043.4,0.44017741]
[1772614102552,0.002,2044.0,2043.5,0.44017741]
[1772614102753,0.002,2044.0,2043.2,1.22357086]
[1772614102939,0.002,2044.0,2043.3,0.44029912]
[1772614103142,0.002,2044.0,2043.4,0.44029912]
[1772614103348,0.002,2044.0,2043.5,0.44029912]
[1772614103563,0.002,2044.0,2043.2,1.22357086]
[1772614103769,4.89445238,2044.4,2043.2,1.22357086]
[1772614103770,1.22585267,2044.4,2043.3,6.19436172]
[1772614103936,0.003,2044.4,2043.4,6.19436172]
[1772614104136,0.003,2044.4,2043.5,0.43981473]
[1772614104350,0.003,2044.4,2043.6,0.43981473]
[1772614104639,1.22240737,2045.2,2043.8,5.75454699]
[1772614104873,1.22240737,2045.2,2044.0,3.44486193]
[1772614105170,1.22235532,2045.3,2044.1,0.43981473]
[1772614105334,1.22235532,2045.3,2044.2,0.43981473]
[1772614105531,1.22235532,2045.3,2044.3,0.43981473]
[1772614105732,1.22235532,2045.3,2044.0,1.22309197]
[1772614105974,3.09935532,2045.3,2044.1,0.43816068]
[1772614106266,3.09935532,2045.3,2044.2,0.43816068]
[1772614106456,1.22235532,2045.3,2044.3,0.43816068]
[1772614106802,3.09935532,2045.3,2044.0,1.22309197]
[1772614107070,1.22235532,2045.3,2044.1,6.192185]
[1772614107245,4.88840663,2045.7,2044.4,5.75454699]
[1772614107437,4.88840663,2045.7,2044.5,6.192185]
[1772614107638,4.88840663,2045.7,2044.6,0.43763801]
[1772614107837,4.88840663,2045.7,2044.3,5.75454699]
[1772614108038,6.76440663,2045.7,2044.4,0.43700028]
[1772614108350,1.876,2045.6,2044.5,0.43700028]
[1772614108658,1.876,2045.6,2044.3,5.75454699]
[1772614108659,4.88840663,2045.7,2044.6,0.43667632]
[1772614108854,1.38099086,2046.1,2044.7,6.19110791]
[1772614109161,1.38099086,2046.1,2044.9,5.75454699]
[1772614109335,0.1591283,2046.1,2045.0,0.4356912]
[1772614109665,0.1591283,2046.1,2044.9,5.75454699]
[1772614109666,1.38099636,2046.1,2044.9,5.75454699]
[1772614110368,1.38099636,2046.1,2044.2,4.89141277]
[1772614110369,77.61549849,2044.0,2043.9,5.33894429]
[1772614110553,1.38099636,2046.1,2043.9,1.65783829]
[1772614110554,7.84637258,2046.0,2043.9,1.65783829]
[1772614110739,3.0959561,2045.9,2044.2,1.22297231]
[1772614111038,1.38097836,2046.1,2044.4,1.61046707]
[1772614111241,1.38097836,2046.1,2044.5,1.772]
[1772614111436,7.61688387,2046.1,2044.5,1.772]
[1772614111755,7.61688387,2046.1,2044.5,1.771]
[1772614111958,6.23590551,2046.0,2044.5,1.771]
[1772614112160,9.71937258,2046.0,2044.5,1.771]
[1772614112542,6.23590551,2046.0,2044.6,0.52818897]
[1772614112743,7.45786161,2045.9,2044.6,1.22273305]
[1772614113187,7.84637258,2045.5,2044.1,1.22303214]
[1772614113483,6.23590551,2045.3,2044.1,1.22303214]
[1772614113694,1.871,2045.3,2044.1,1.22303214]
[1772614113863,7.84637258,2045.2,2044.0,1.22306039]
[1772614114060,8.10690551,2045.2,2044.0,1.22306039]
[1772614114362,8.10590551,2045.2,2044.0,1.22306039]
[1772614114888,7.45808258,2045.6,2044.1,0.52818897]
[1772614115102,7.32607912,2048.6,2044.8,4.83140121]
[1772614115282,10.07218114,2049.6,2044.8,4.83140121]
[1772614115283,5.1591283,2050.1,2048.1,0.52818897]
[1772614115589,5.1591283,2050.1,2048.6,0.001]
[1772614115590,6.23590551,2050.0,2048.6,0.001]
[1772614115786,6.24320428,2050.0,2048.6,0.001]
[1772614116289,6.24320428,2050.0,2048.7,6.05615126]
[1772614116290,9.1993606,2049.9,2048.7,6.05615126]
[1772614116587,6.23590551,2049.6,2048.8,2.76078035]
[1772614116829,6.23590551,2049.6,2048.9,3.62487492]
[1772614116976,0.00729877,2049.6,2049.0,2.76078035]
[1772614117154,7.61401469,2050.1,2049.1,2.76078035]
[1772614117355,7.61401469,2050.1,2048.7,4.15946548]
[1772614117356,0.00729877,2050.0,2048.7,1.22028603]
[1772614117598,0.00729877,2050.0,2048.8,3.29537091]
[1772614117971,0.00729877,2050.0,2048.9,3.29537091]
[1772614118166,0.00729877,2050.0,2048.9,0.52918897]
[1772614118366,6.23540551,2050.8,2049.0,0.82539638]
[1772614118566,7.84587258,2050.7,2049.1,1.751]
[1772614118883,7.84587258,2050.7,2049.2,2.04538466]
[1772614118884,1.21915536,2050.6,2049.2,2.04538466]
[1772614119199,6.23540551,2050.3,2048.5,3.29537091]
[1772614119399,6.23540551,2050.0,2048.4,2.97345524]
[1772614119567,6.23540551,2050.0,2048.4,1.22044658]
[1772614119568,8.11240551,2050.0,2048.4,1.22044658]
[1772614119757,6.23540551,2050.0,2048.4,1.22044658]
[1772614120088,6.23540551,2050.6,2048.7,1.61046707]
[1772614120291,1.21913524,2050.7,2048.4,1.22044658]
[1772614120292,6.23540551,2050.2,2048.4,1.22044658]
[1772614120596,1.21913524,2050.7,2048.4,1.22044658]
[1772614120597,6.23540551,2050.4,2048.6,3.82455988]
[1772614120796,1.21951219,2050.0,2048.4,1.22044658]
[1772614121187,7.4549177,2050.0,2048.4,1.22044658]
[1772614121900,2.82995504,2050.1,2048.4,1.74963555]
[1772614122375,6.23540551,2050.0,2048.4,1.22044658]
[1772614122575,8.11640551,2050.0,2048.5,0.42208907]
[1772614122775,1.21957168,2049.9,2048.3,4.88185901]
[1772614123072,1.21957168,2049.9,2048.4,0.42193486]
[1772614123273,7.45497719,2049.9,2048.3,4.88185901]
[1772614123505,3.49146707,2049.8,2048.2,4.88185901]
[1772614123802,1.882,2049.7,2048.2,4.88185901]
[1772614124003,6.23540551,2049.4,2048.2,1.22058392]
[1772614124337,6.23540551,2049.1,2047.5,1.22100122]
[1772614124508,1.61046707,2049.5,2047.3,3.56839507]
[1772614124509,1.61046707,2048.6,2047.3,3.56839507]
[1772614124804,1.22004782,2049.1,2047.5,1.22100122]
[1772614125174,1.61046707,2048.9,2047.5,1.22100122]
[1772614125598,1.883,2048.8,2047.5,1.22100122]
[1772614126306,1.61046707,2048.9,2047.5,1.22100122]
[1772614126496,1.884,2049.0,2047.5,1.22100122]
[1772614126806,1.22004782,2049.1,2047.7,0.7]
[1772614127116,1.61046707,2049.4,2047.8,1.6429365]
[1772614127406,1.884,2049.3,2047.9,0.42211416]
[1772614127770,3.49446707,2049.4,2047.9,0.42211416]
[1772614127996,1.61046707,2049.4,2047.9,0.42211416]
[1772614128373,7.45521521,2049.5,2047.9,0.42211416]
[1772614128579,1.2198097,2049.5,2047.9,0.95130313]
[1772614128779,4.87923883,2049.7,2048.1,1.22064352]
[1772614128980,4.87923883,2049.7,2048.2,0.42211416]
[1772614129284,1.61046707,2049.7,2048.2,0.42211416]
[1772614129617,8.12040551,2049.6,2048.2,0.42211416]
[1772614129791,6.23540551,2049.6,2048.2,0.42211416]